{"text_format":"2","workbook":"xlsx","n_sheets":3,"sheets":["Hoja1","Hoja2","Hoja3"],"not_rendered":{"charts":0,"images":0,"macros":0,"external_links":0,"defined_names":0,"comments":0,"pivot_tables":0},"unopened":[],"bounds":{"document_bytes":16777216,"sheet_cells":100000,"run_cost":"one","rows_first":2000,"rows_last":500,"rows_between":2000,"halvings":0,"cell_chars":16384,"cell_head_chars":4096},"cells_cut":0,"cells_raw":0,"read":"whole","date_system":"1900"}

{"sheet":"Hoja1","index":0,"n_rows":99,"n_cols":4,"rows_kept":99,"cut":false,"hidden":false,"merged":[]}
["MUNICIPALIDAD PROVINCIAL DE CHICLAYO"]
["CONSUMO DE ENERGÍA ELÉCTRICA MES DE JULIO DEL 2014 "]
[]
["N°","LOCALES","CÓDIGO DE CONSULTA","JULIO"]
[1,"AV. ZARUMILLA /JUAN TOMIS STACK",25933280,41]
[{"$f":"(A5+1)","v":2},"ESQ. AV. JUAN TOMIS STACK - AV. TUMBES",25933270,42.1]
[{"$f":"(A6+1)","v":3},"CHICLAYO 01 AV. SAENZ PEÑA - BOLOGNESI - SEMAFORO",25063726,30.8]
[4,"CHICLAYO 01 AV. SAENZ PEÑA - M. NIETO - SEMÁFORO",25063744,5.0999999999999996]
[5,"CHICLAYO 01 ELIAS AGUIRRE CDRA 8 - PARQUE CENTRAL",25003989,1286.8]
[6,"CHICLAYO 01 AV. JOSÉ BALTA Nº 996 - 4TO PISO",25009098,5.0999999999999996]
[7,"CHICLAYO 01 AV. JOSÉ BALTA Nº 996 - 3ER PISO",25009070,69.3]
[8,"AV. JOSÉ BALTA 823 - V.VEGA - SEMÁFORO",25806492,4.8]
[9,"SAN JOSÉ 823 - AV. BALTA 820 SATCH",25595244,2137.8000000000002]
[10,"AV. SAENZ PEÑA 00S/N - LEONCIO PRADO",25945558,35.5]
[11,"LOS NARAN JOS URB. SANTA VICTORIA",25176210,980.8]
[12,"AV. JOSÉ BALTA 0099",25005820,1082]
[13,"ANGAMOS 294 URB. EL PORVENIR - SEMÁFORO",25166723,5.2]
[14,"AV. LUIS GONZALES 1699 - AV. LEGUIA - SEMÁFORO",25048425,5.0999999999999996]
[15,"ANGAMOS  URB. SAN LUIS - PARQUE",25638922,366.6]
[16,"CHICLAYO 01 AV. S. PEÑA 0022 0051 ESQ. LEGUIA - SEMÁFORO",25063477,5.2]
[17,"CHICLAYO 01 AV. PEDRO RUIZ 120 - AV. BALTA 1299 - SEMÁFORO",25035632,5.2]
[18,"CHICLAYO 01 AV. P. RUIZ - LORA Y LORA - SEMÁFORO",25035614,106.3]
[19,"CHICLAYO 01 AV. L. GONZÁLES 1399 - ARICA -  1ER SEMÁFORO",25048256,46]
[20,"CHICLAYO 01 ANGAMOS - ESQ. PEDRO RUIZ - SEMÁFORO",25942645,27.9]
[21,"CHICLAYO 01 AV. L. GONZÁLES - PEDRO RUIZ - SEMÁFORO",25047849,39.799999999999997]
[22,"URB. LA PRIMAVERA  Ca. W. RODRIGUEZ CDRA 2",25468976,29.8]
[23,"ESQ. M. IZAGA - JOSÉ LEONARDO ORTÍZ - SEMÁFORO",25929634,19.600000000000001]
[24,"CHICLAYO 01 AV. J. L. ORTÍZ - E. GARCÍA Y GARCÍA - SEMÁFORO",25084323,17.3]
[25,"C.P. M LA PRIMAVERA AV. A.B LEGUIA 109 BOMBA",25540676,666]
[26,"AV. SALAVERRY - LORETO - SEMÁFORO",25929240,18]
[27,"MANUEL ARTEAGA 0002 INT. 0013 URB. LOS PARQUES",25597098,2914.7]
[28,"CHICLAYO 01 AV. LUIS GONZALES - E. AGUIRRE - SEMÁFORO",25044874,52.9]
[29,"CHICLAYO 01 AV. F. BOLOGNESI 022 - ESQ. GRAU - SEMÁFORO",25068221,46.6]
[30,"AV. SAENZ PEÑA ORIENTE INT. ARICA - SEMÁFORO",25922910,14]
[31,"ESQ. SARMIENTO - F. BOLOGNESI - SEMÁFORO",25903146,18]
[32,"AV. MIGUEL GRAU CDRA 2 - MARISCAL NIETO",25966351,21.3]
[33,"FRANCISCO CABRERA 1399 PISCINA MUNICIPAL",25059474,265.5]
[34,"SAN JOSE 1394 ASENTAMIENTOS HUMANOS",25017231,665.6]
[35,"AV. JOSÉ BALTA 0199 - F. BOLOGNESI  -  SEMÁFORO",25006470,77.099999999999994]
[36,"AV. LUIS GONZALES 0021 - SEMÁFORO",25044883,21.3]
[37,"AV. FRANCISCO BOLOGNESI 0021 - SEMÁFORO",25068212,32]
[38,"ELIAS AGUIRRE 0145 - SEMÁFORO",25000190,53.8]
[39,"MANUEL MARÍA IZAGA 0199 - LUIS GONZÁLES - SEMÁFORO",25042118,24.7]
[40,"AV. JOSÉ BALTA 1399 - ARICA - SEMÁFORO",25010910,85.6]
[41,"AV. JOSÉ BALTA - ELÍAS AGUIRRE - SEMÁFORO",25835986,143.1]
[42,"AV. JOSÉ BALTA - ELÍAS AGUIRRE - SEMÁFORO",25835968,43.4]
[43,"ELÍAS AGUIRRE 0999 - SAENZ PEÑA - SEMÁFORO",25005188,27.6]
[44,"SAN JOSÉ 0099 - J. L. ORTIZ  -  SEMÁFORO",25012567,5.2]
[45,"AV. MIGUEL GRAU 0152",25086346,1957]
[46,"AV. JOSÉ BALTA 0975 COMEDOR MUNICIPAL",25009015,504.3]
[47,"AV. JOSÉ BALTA 1799 - AV. LEGUIA - SEMÁFORO",25012530,143.69999999999999]
[48,"AV. VÍCTOR RAÚL HAYA DE LA TORRE CDRA 23 - LA VICTORIA",25610574,747.1]
[49,"AV. SAENZ PEÑA 1899 URB. LATINA",26041625,1563.9]
[50,"URB. LA PRADERA - PARQUE INDUSTRIAL",25598139,1976.7]
[51,"AV. JOSÉ BALTA 0998 - BOTIQUIN",25009104,108.3]
[52,"AV. JOSÉ BALTA 0996-41 - 4TO PISO ",25009089,41]
[53,"AV. JOSÉ BALTA 0996-21 - 3ER PISO",25009060,80.2]
[54,"ANGAMOS 1099 MINISTERIO DE TRANSP. Y COMUNICACIONES",25202759,2404.6]
[55,"AV. JUAN TOMIS STACK - OVALO - URB. SANTA ELENA",26437876,28.4]
[56,"AV. JOSÉ BALTA 0921",35534190,87.4]
[57,"JUAN FANNING 00S/N - SAÉNZ PEÑA - SEMÁFORO",26464480,21.4]
[58,"AV. LIBERTAD - SESQUICENTENARIO - URB. SANTA VICTORIA",26398769,120.4]
[59,"CARLOS CASTAÑEDA 00 S/N CENTRO CHICLAYO",26398740,120.4]
[60,"AV. VÍCTOR RAÚL HAYA DE LA TORRE 00 S/N P.J DIEGO FERRE",26398731,120.4]
[61,"MARISCAL NIETO 00 S/N  URB. CAMPODÓNICO",26398778,120.5]
[62,"AV. MIGUEL GRAU - F. BOLOGNESI",26398750,120.4]
[63,"SAN JOSÉ - JUAN CUGLIEVAN  -  SEMÁFORO",26424967,120.6]
[64,"MANUEL MARÍA IZAGA - MIGUEL GRAU  -  SEMÁFORO",26424958,120.6]
[65,"AV. PEDRO RUÍZ - SAÉNZ PEÑA  -  SEMÁFORO ",26418119,25.6]
[66,"AV. JUAN CUGLIEVAN - F. BOLOGNESI  -  SEMÁFORO",26464523,22.6]
[{"$f":"(A70+1)","v":67},"AV. SALAVERRY CDRA 3 PATAZCA - LAS MORAS  -  SEMÁFORO",26468317,20.8]
[68,"SAN JOSÉ CDRA 9 - 7 DE ENERO  -  SEMÁFORO",35786286,9.5]
[69,"AV. FRANCISCO CÚNEO - AV. LORETO  -  PATAZCA",35730093,120.7]
[70,"VICENTE DE LA VEGA - LORA Y LORA  -  SEMÁFORO",25949575,4.7]
[71,"AV. JORGE CHAVEZ - AV. PEDRO RUÍZ  -  SEMÁFORO",25990384,4.7]
[72,"AV. MIGUEL GRAU - AV. LAS AMÉRICAS  -  SEMÁFORO",25982909,13.6]
[73,"AV. LEGUIA OVALO INT. PESCADOR",26310026,28.3]
[74,"MERCADO SANTA ROSA P.J JOSÉ OLAYA",26467759,28.6]
[75,"AV. ARICA CDRA 4 - RAYMONDI CDRA 6  -  SEMÁFORO",35480858,30.8]
[76,"AV. SANTA VICTORIA CDRA 01 P.J SAN MARTÍN  -  SEMÁFORO",35822767,120.5]
[77,"ALMIRANTE VILLAR - AV. SANTA VICTORIA",35981351,225.2]
[78,"LOS ROSALES - AV. SANTA VICTORIA",35981342,312.39999999999998]
[79,"LA FLORIDA - AV. SANTA VICTORIA",35981360,225.1]
[80,"ELIAS AGUIRRE 240",25000261,3989.1]
[81,"AV. FERNANDO BELAÚNDE - LORA Y LORA  -  SEMÁFORO",26398802,120.5]
[82,"LOS TREBOLES - PANAMERICANA NORTE  -  SEMÁFORO",26398849,120.4]
[83,"AV. JUAN TOMIS STACK Y PASEL DEL DEPORTE",26398796,120.5]
[84,"AV. FERNANDO BELAÚNDE - AV. LEGUIA Y RAYMONDY",26398820,120.5]
[85,"LEONCIO PRADO CDRA 16 URB. CAMPODÓNICO",35480820,4.8]
[86,"AV. MIGUEL GRAU 00S/N - LA LIBERTAD  -  SEMÁFORO",26432646,120.4]
[87,"YURIMAGUAS Nº 299 - URB. LA PRIMAVERA",25378350,425.4]
[88,"AV. JOSÉ QUIÑONES CDRA-5 CAMPODÓNICO  -  SEMÁFORO",35480830,29.6]
[89,"ELÍAS AGUIRRE Nº 248 - 02",25000314,1275.4000000000001]
[90,"LA FLORIDA Nº MUSAS - SANTA VICTORIA",35854896,3.5]
[91,"PEDRO RUIZ/RAYMONDI - SEMÁFORO",36311798,9.6999999999999993]
[92,"FAUSTINO SARMIENTO/MARISCAL NIETO - SEMÁFORO",36311770,9.6999999999999993]
[93,"CHINCHAYSUYO/LA LIBERTAD - SEMÁFORO",36311789,4.9000000000000004]
[94,"AV. MIGUEL GRAU CDRA 13 SANTA VICTORIA",35489002]
[null,"TOTAL",null,{"$f":"SUM(D5:D98)","v":29646.30000000001}]

{"sheet":"Hoja2","index":1,"n_rows":0,"n_cols":0,"rows_kept":0,"cut":false,"hidden":false,"merged":[]}

{"sheet":"Hoja3","index":2,"n_rows":0,"n_cols":0,"rows_kept":0,"cut":false,"hidden":false,"merged":[]}